bitfinex-derivatives/quotes_SOLF0:USTF0_20230902
["timestamp","ask_amount","ask_price","bid_price","bid_amount"]
[1693636037729,110.57,19.52,19.514,15.37]
[1693636049736,0.70714278,19.519,19.514,15.37]
[1693636055742,15.02,19.525,19.518,110.57]
[1693636057446,15.02,19.525,19.52,0.78229836]
[1693636062348,110.57,19.522,19.52,0.78229836]
[1693636063242,110.57,19.522,19.514,125.94]
[1693636063942,110.57,19.522,19.519,0.79182708]
[1693636069460,110.57,19.52,19.513,20.1317]
[1693636069961,140.45446317,19.52,19.513,20.1317]
[1693636085861,110.57,19.52,19.514,15.37]
[1693636086063,111.37977336,19.522,19.514,125.94]
[1693636095571,111.37977336,19.522,19.514,110.57]
[1693636095971,15.02,19.518,19.513,20.1317]
[1693636096171,15.02,19.518,19.51,0.45454546]
[1693636096172,15.02,19.513,19.51,0.45454546]
[1693636096371,15.02,19.51,19.501,110.57]
[1693636096576,110.57,19.509,19.499,110.57]
[1693636096778,110.57,19.509,19.501,15.37]
[1693636097575,0.70004379,19.506,19.501,15.37]
[1693636098681,0.70004379,19.506,19.499,110.57]
[1693636100283,125.59,19.505,19.497,132.4523]
[1693636101182,125.59,19.505,19.497,110.57]
[1693636101384,15.02,19.501,19.494,15.37]
[1693636102881,15.02,19.501,19.493,110.57]
[1693636103576,110.57,19.502,19.49,0.45454546]
[1693636103577,15.02,19.497,19.49,111.02454546]
[1693636103781,500.0,19.513,19.49,0.45454546]
[1693636103782,110.57,19.496,19.49,0.45454546]
[1693636104487,0.7715112,19.495,19.49,0.45454546]
[1693636105281,0.7715112,19.495,19.49,111.02454546]
[1693636109790,0.7715112,19.495,19.49,110.57]
[1693636111393,0.7715112,19.495,19.489,35.7935]
[1693636111693,0.7715112,19.495,19.489,36.24804546]
[1693636113492,0.7715112,19.495,19.489,20.87804546]
[1693636118700,0.7715112,19.495,19.489,20.4235]
[1693636119103,110.57,19.49,19.478,110.57]
[1693636119296,110.57,19.486,19.479,9.42739654]
[1693636119490,110.57,19.486,19.479,29.80139654]
[1693636119798,110.57,19.486,19.48,9.42739654]
[1693636121801,0.76318053,19.487,19.481,110.57]
[1693636122102,0.76318053,19.487,19.482,9.42739654]
[1693636125400,125.61,19.486,19.482,9.42739654]
[1693636125601,125.61,19.486,19.479,130.944]
[1693636125802,125.61,19.486,19.48,9.4289593]
[1693636132108,110.57,19.485,19.48,9.4289593]
[1693636134715,111.33318053,19.487,19.48,119.9989593]
[1693636135018,111.33318053,19.487,19.48,110.57]
[1693636135516,111.33318053,19.487,19.481,9.42885842]
[1693636138316,111.33318053,19.487,19.48,110.57]
[1693636142119,110.57,19.485,19.479,20.374]
[1693636142920,110.57,19.485,19.48,9.42908212]
[1693636143821,110.57,19.485,19.484,0.06182485]
[1693636145720,125.62,19.485,19.484,0.06182485]
[1693636146522,15.05,19.484,19.479,20.374]
[1693636146716,110.57,19.483,19.479,20.374]
[1693636147118,110.57,19.483,19.476,15.4]
[1693636147421,110.57,19.483,19.477,9.42938456]
[1693636148217,110.57,19.481,19.477,9.42938456]
[1693636148424,110.57,19.481,19.476,15.4]
[1693636149725,0.77025129,19.48,19.476,15.4]
[1693636156128,0.77025129,19.48,19.473,110.57]
[1693636156326,0.77025129,19.48,19.474,9.4313241]
[1693636161131,0.77025129,19.48,19.475,20.1109]
[1693636161933,110.57,19.479,19.475,20.1109]
[1693636162336,110.57,19.479,19.476,15.4]
[1693636172054,0.77025129,19.48,19.476,15.4]
[1693636174348,15.05,19.501,19.476,15.4]
[1693636174549,110.57,19.49,19.482,110.57]
[1693636176559,110.57,19.49,19.485,15.4]
[1693636184159,110.57,19.491,19.485,15.4]
[1693636185562,110.57,19.491,19.486,0.78993047]
[1693636191466,110.57,19.494,19.487,110.57]
[1693636191965,137.34763847,19.496,19.489,110.57]
[1693636193666,137.34763847,19.496,19.491,0.8252058]
[1693636193864,110.57,19.496,19.492,15.39]
[1693636194869,110.57,19.499,19.492,125.96]
[1693636202574,110.57,19.496,19.491,0.8252058]
[1693636204171,0.76090408,19.495,19.491,0.8252058]
[1693636204368,0.76090408,19.495,19.492,15.39]
[1693636205976,0.76090408,19.495,19.491,0.8252058]
[1693636210778,0.76090408,19.495,19.492,125.96]
[1693636210983,15.04,19.502,19.494,110.57]
[1693636212781,15.04,19.502,19.496,0.75631235]
[1693636213077,110.57,19.499,19.496,0.75631235]
[1693636213581,15.04,19.498,19.496,0.75631235]
[1693636213783,15.04,19.498,19.492,15.39]
[1693636214579,15.04,19.498,19.495,0.71408982]
[1693636214982,110.57,19.501,19.495,0.71408982]
[1693636218578,110.57,19.501,19.495,0.77587979]
[1693636218977,110.57,19.501,19.492,110.57]
[1693636219182,110.57,19.501,19.487,0.45454546]
[1693636219183,110.57,19.495,19.487,110.57]
[1693636220783,110.57,19.495,19.489,0.69560728]
[1693636221989,110.57,19.493,19.489,0.69560728]
[1693636222791,110.57,19.493,19.485,110.57]
[1693636223492,110.57,19.493,19.489,0.73679477]
[1693636229896,110.57,19.495,19.489,0.73679477]
[1693636230693,110.57,19.495,19.487,110.57]
[1693636230892,31.8144534,19.503,19.492,15.39]
[1693636230893,15.04,19.498,19.492,15.39]
[1693636232000,110.57,19.5,19.493,110.57]
[1693636233400,110.57,19.5,19.495,0.79258877]
[1693636233601,110.57,19.5,19.495,0.85437873]
[1693636248008,110.57,19.5,19.495,0.79258877]
[1693636249015,110.57,19.5,19.495,0.85437873]
[1693636249211,110.57,19.5,19.496,15.39]
[1693636252117,15.04,19.502,19.496,15.39]
[1693636261021,15.04,19.502,19.495,111.42437873]
[1693636261319,110.57,19.5,19.495,0.85437873]
[1693636271927,125.61,19.502,19.495,0.85437873]
[1693636275323,110.57,19.5,19.495,0.85437873]
[1693636275733,110.57,19.496,19.495,0.85437873]
[1693636278236,110.57,19.496,19.495,0.79258877]
[1693636279026,15.04,19.498,19.495,0.79258877]
[1693636279228,15.04,19.498,19.495,0.85437873]
[1693636281632,15.04,19.498,19.495,0.79258877]
[1693636282838,15.04,19.498,19.495,0.85437873]
[1693636286244,110.57,19.499,19.495,0.85437873]
[1693636292042,110.57,19.501,19.495,0.85437873]
[1693636292541,110.57,19.501,19.495,0.79258877]
[1693636293142,110.57,19.501,19.496,15.39]
[1693636301952,15.04,19.502,19.496,15.39]
[1693636311955,110.57,19.501,19.496,15.39]
[1693636326271,110.57,19.501,19.495,0.85437873]
[1693636326471,110.57,19.498,19.495,0.85437873]
[1693636328769,110.57,19.496,19.49,0.45454546]
[1693636331680,110.57,19.496,19.489,15.39]
[1693636334780,110.57,19.493,19.488,0.45454546]
[1693636335082,110.57,19.493,19.485,131.7491]
[1693636336282,110.57,19.493,19.485,172.12653589]
[1693636342090,110.57,19.491,19.485,61.55653589]
[1693636344586,110.57,19.491,19.485,21.1791]
[1693636352099,110.57,19.489,19.485,21.1791]
[1693636352299,110.57,19.489,19.481,110.57]
[1693636352498,110.57,19.489,19.481,131.7667]
[1693636357199,110.57,19.492,19.484,110.57]
[1693636365709,110.57,19.492,19.481,131.7667]
[1693636365915,110.57,19.489,19.481,131.7667]
[1693636368114,110.57,19.489,19.481,110.57]
[1693636368312,15.04,19.484,19.479,40.64410255]
[1693636368513,15.04,19.484,19.478,0.45454546]
[1693636368712,15.04,19.484,19.478,9.88383155]
[1693636369316,110.57,19.485,19.478,9.88383155]
[1693636371924,29.72916916,19.495,19.478,120.45383155]
[1693636371925,110.57,19.486,19.478,120.45383155]
[1693636372221,110.57,19.486,19.479,9.42928609]
[1693636374619,110.57,19.482,19.476,36.7]
[1693636374922,110.57,19.482,19.477,9.42963456]
[1693636382025,110.57,19.483,19.477,9.42963456]
[1693636383531,110.57,19.486,19.479,110.57]
[1693636383828,110.57,19.489,19.482,110.57]
[1693636388839,110.57,19.487,19.479,110.57]
[1693636392044,110.57,19.486,19.478,110.57]
[1693636402042,110.57,19.483,19.476,130.7515]
[1693636414559,0.75801432,19.481,19.476,130.7515]
[1693636421956,111.32801432,19.481,19.476,20.1815]
[1693636422255,15.05,19.48,19.476,20.1815]
[1693636422558,111.32801432,19.481,19.476,20.1815]
[1693636442080,110.57,19.48,19.476,20.1815]
[1693636442581,110.57,19.48,19.474,41.14109799]
[1693636442779,110.57,19.48,19.473,110.57]
[1693636442972,110.57,19.48,19.474,9.43093098]
[1693636449685,125.62,19.48,19.474,9.43093098]
[1693636449882,125.62,19.48,19.473,152.08950717]
[1693636450082,125.62,19.48,19.474,9.43097539]
[1693636452291,152.63988042,19.48,19.474,9.43097539]
[1693636452481,152.63988042,19.48,19.473,56.91950717]
[1693636455893,137.58988042,19.48,19.473,56.91950717]
[1693636457897,152.63988042,19.48,19.473,56.91950717]
[1693636458988,137.58988042,19.48,19.473,56.91950717]
[1693636459891,110.57,19.48,19.474,9.43114253]
[1693636460289,0.75801432,19.481,19.476,110.57]
[1693636461997,0.75801432,19.481,19.476,15.4]
[1693636465600,0.75801432,19.481,19.476,36.7633]
[1693636472103,0.75801432,19.481,19.477,110.57]
[1693636487622,0.75801432,19.481,19.478,110.57]
[1693636491927,0.75801432,19.481,19.476,147.3333]
[1693636501533,15.05,19.48,19.476,131.9333]
[1693636501734,15.05,19.48,19.464,653.4]
[1693636501735,15.05,19.48,19.468,15.4]
[1693636501940,15.05,19.48,19.473,110.57]
[1693636502238,125.62,19.48,19.472,110.57]
[1693636502538,110.57,19.48,19.472,110.57]
[1693636503335,15.05,19.477,19.472,110.57]
[1693636514752,0.82903113,19.478,19.472,110.57]
[1693636516451,0.82903113,19.478,19.473,15.41]
[1693636516645,0.82903113,19.478,19.475,110.57]
[1693636518846,0.82903113,19.478,19.476,15.41]
[1693636525547,15.06,19.484,19.477,110.57]
[1693636527054,110.57,19.485,19.477,110.57]
[1693636528557,110.57,19.485,19.479,0.82999162]
[1693636531958,110.57,19.486,19.479,111.39999162]
[1693636532754,110.57,19.486,19.479,110.57]
[1693636533359,110.57,19.486,19.481,0.83662716]
[1693636546973,15.05,19.482,19.481,0.83662716]
[1693636547874,110.57,19.484,19.481,0.83662716]
[1693636550174,140.67160089,19.482,19.478,0.06184387]
[1693636552071,110.57,19.48,19.478,0.06184387]
[1693636562470,110.57,19.48,19.473,20.9748]
[1693636562672,110.57,19.48,19.473,36.3748]
[1693636563980,0.73315115,19.478,19.473,36.3748]
[1693636570296,0.73315115,19.478,19.475,110.57]
[1693636570495,0.73315115,19.478,19.474,110.57]
[1693636572089,110.57,19.483,19.476,110.57]
[1693636574395,15.05,19.482,19.476,110.57]
[1693636576995,110.57,19.483,19.476,110.57]
[1693636578795,110.57,19.483,19.478,0.06184387]
[1693636580397,110.57,19.483,19.479,0.81625736]
[1693636600516,110.57,19.484,19.479,0.81625736]
[1693636601214,110.57,19.484,19.478,0.06184387]
[1693636601912,110.57,19.484,19.48,0.71717542]
[1693636603311,291.05802653,19.493,19.482,110.57]
[1693636603312,110.57,19.49,19.482,110.57]
[1693636603520,110.57,19.49,19.482,155.58921983]
[1693636604719,110.57,19.49,19.484,0.76786309]
[1693636605317,125.62,19.493,19.485,110.57]
[1693636621930,110.57,19.492,19.485,110.57]
[1693636624432,140.94499743,19.49,19.484,0.76786309]
[1693636625133,140.94499743,19.49,19.482,110.57]
[1693636625935,140.94499743,19.49,19.485,0.71181118]
[1693636631937,30.37499743,19.49,19.485,0.71181118]
[1693636635044,30.37499743,19.49,19.485,111.28181118]
[1693636640145,110.57,19.492,19.485,111.28181118]
[1693636640648,110.57,19.495,19.489,15.4]
[1693636640847,110.57,19.499,19.492,15.4]
[1693636642044,110.57,19.501,19.494,16.10179069]
[1693636642849,110.57,19.501,19.494,15.4]
[1693636643345,110.57,19.501,19.493,110.57]
[1693636643536,110.57,19.501,19.496,0.79126137]
[1693636655049,56.39974358,19.51,19.496,0.79126137]
[1693636655050,110.57,19.504,19.496,16.19126137]
[1693636655250,110.57,19.506,19.498,110.57]
[1693636656745,110.57,19.506,19.5,0.81018698]
[1693636664451,110.57,19.506,19.501,15.38]
[1693636664657,110.57,19.509,19.501,126.40454546]
[1693636666957,15.05,19.51,19.503,110.57]
[1693636668456,15.05,19.51,19.505,0.76171343]
[1693636676665,144.78566713,19.511,19.505,0.76171343]
[1693636677467,144.78566713,19.511,19.506,15.38]
[1693636678763,110.57,19.513,19.506,125.95]
[1693636679870,110.57,19.517,19.509,110.57]
[1693636681165,15.03,19.512,19.506,110.57]
[1693636681366,15.03,19.512,19.511,0.77216471]
[1693636681970,110.57,19.512,19.505,110.57]
[1693636682169,15.03,19.515,19.509,15.38]
[1693636682772,15.03,19.515,19.51,0.73747355]
[1693636692181,110.57,19.514,19.51,0.73747355]
[1693636702094,110.57,19.515,19.51,0.73747355]
[1693636710602,110.57,19.518,19.511,110.57]
[1693636722203,500.0,19.521,19.51,0.73747355]
[1693636722204,15.03,19.515,19.51,0.73747355]
[1693636731412,110.57,19.516,19.51,0.73747355]
[1693636737215,15.03,19.515,19.51,0.73747355]
[1693636739218,15.03,19.512,19.51,0.73747355]
[1693636739416,45.70469815,19.512,19.505,110.57]
[1693636740516,45.70469815,19.512,19.506,15.38]
[1693636742117,141.24469815,19.512,19.504,110.57]
[1693636744616,141.24469815,19.512,19.51,0.06174244]
[1693636745522,156.27469815,19.512,19.51,0.06174244]
[1693636751533,141.24469815,19.512,19.51,0.06174244]
[1693636751934,30.67469815,19.512,19.51,0.06174244]
[1693636757437,30.67469815,19.512,19.506,110.57]
[1693636758538,30.67469815,19.512,19.506,15.38]
[1693636759638,111.2839685,19.513,19.51,0.06174244]
[1693636760033,15.03,19.512,19.51,0.06174244]
[1693636760239,125.6,19.511,19.51,0.06174244]
[1693636761440,110.57,19.511,19.51,0.06174244]
[1693636761638,111.2839685,19.513,19.51,0.06174244]
[1693636764435,0.7139685,19.513,19.51,0.06174244]
[1693636772644,0.7139685,19.513,19.507,110.57]
[1693636774947,0.7139685,19.513,19.51,0.06174244]
[1693636786355,15.03,19.512,19.51,0.06174244]
[1693636786560,110.57,19.511,19.51,0.06174244]
[1693636787059,125.6,19.511,19.51,0.06174244]
[1693636802668,15.03,19.51,19.502,0.45454546]
[1693636802862,110.57,19.509,19.502,0.45454546]
[1693636804064,0.73377731,19.507,19.502,0.45454546]
[1693636805767,0.73377731,19.507,19.506,0.12350958]
[1693636815878,126.33377731,19.507,19.506,0.12350958]
[1693636817574,15.03,19.506,19.496,110.57]
[1693636817775,110.57,19.504,19.496,110.57]
[1693636820784,110.57,19.504,19.502,0.18530144]
[1693636822087,110.57,19.503,19.502,0.18530144]
[1693636824778,110.57,19.506,19.502,0.18530144]
[1693636832892,110.57,19.506,19.498,110.57]
[1693636837191,110.57,19.506,19.502,0.18530144]
[1693636843101,110.57,19.505,19.502,0.18530144]
[1693636847500,110.57,19.505,19.497,110.57]
[1693636847901,110.57,19.505,19.497,130.487]
[1693636849702,0.73301688,19.503,19.497,130.487]
[1693636850704,0.73301688,19.503,19.502,0.18530144]
[1693636882022,111.30301688,19.503,19.502,0.18530144]
[1693636902037,0.73301688,19.503,19.502,0.18530144]
[1693636937069,15.76301688,19.503,19.502,0.18530144]
[1693636942068,126.33301688,19.503,19.502,0.18530144]
[1693636952379,15.03,19.502,19.497,19.917]
[1693636953079,15.03,19.502,19.495,110.57]
[1693636954578,15.03,19.502,19.498,0.24711803]
[1693636961977,125.6,19.502,19.498,0.24711803]
[1693636962183,157.79813123,19.502,19.498,0.24711803]
[1693636967485,157.79813123,19.502,19.494,15.39]
[1693636969286,110.57,19.501,19.494,15.39]
[1693636970891,110.57,19.501,19.498,0.24711802]
[1693636972094,47.22813123,19.502,19.498,0.24711802]
[1693636981999,110.57,19.501,19.498,0.24711802]
[1693636989703,15.04,19.498,19.494,0.30895936]
[1693636989902,32.19813123,19.502,19.494,0.30895936]
[1693636989903,110.57,19.495,19.494,0.30895936]
[1693636997411,110.57,19.495,19.49,0.45454546]
[1693637003612,110.57,19.495,19.489,40.3528205]
[1693637003814,110.57,19.495,19.487,0.45454546]
[1693637004014,110.57,19.495,19.487,9.8797281]
[1693637004316,110.57,19.495,19.488,0.45454546]
[1693637006720,110.57,19.495,19.487,9.42518264]
[1693637006721,110.57,19.495,19.487,9.8797281]
[1693637009619,110.57,19.496,19.489,110.57]
[1693637012016,110.57,19.498,19.492,15.39]
[1693637013623,110.57,19.501,19.494,110.57]
[1693637014918,110.57,19.505,19.497,110.57]
[1693637022028,110.57,19.504,19.496,110.57]
[1693637022231,110.57,19.504,19.497,21.191]
[1693637023926,110.57,19.504,19.49,37.41652627]
[1693637023927,500.0,19.502,19.477,0.45454546]
[1693637024131,110.57,19.488,19.48,131.761]
[1693637025230,110.57,19.487,19.48,21.191]
[1693637032033,110.57,19.488,19.48,21.191]
[1693637037740,110.57,19.483,19.482,0.74927683]
[1693637038739,110.57,19.483,19.48,21.9733]
[1693637049150,110.57,19.485,19.48,21.9733]
[1693637049447,0.76446354,19.486,19.48,110.57]
[1693637049653,0.76446354,19.486,19.481,21.7938]
[1693637056651,110.57,19.484,19.481,21.7938]
[1693637061960,110.57,19.483,19.481,21.7938]
[1693637071974,110.57,19.484,19.481,21.7938]
[1693637092195,110.57,19.483,19.481,21.7938]
[1693637115112,110.57,19.484,19.481,21.7938]
[1693637137816,0.76446354,19.486,19.476,15.4]
[1693637138124,0.76446354,19.486,19.484,15.4]
[1693637138310,110.57,19.49,19.484,58.51064719]
[1693637138618,110.57,19.49,19.485,20.455]
[1693637141924,110.57,19.492,19.485,131.025]
[1693637145028,15.05,19.498,19.485,131.025]
[1693637145029,110.57,19.493,19.486,110.57]
[1693637148720,110.57,19.493,19.486,110.63181847]
[1693637153135,110.57,19.496,19.489,110.57]
[1693637153636,110.57,19.494,19.486,110.63181847]
[1693637157237,15.05,19.493,19.486,110.63181847]
[1693637157441,110.57,19.49,19.486,0.06181847]
[1693637162034,110.57,19.489,19.486,0.06181847]
[1693637172154,110.57,19.488,19.486,0.06181847]
[1693637175158,110.57,19.489,19.486,0.06181847]
[1693637179757,74.03269692,19.495,19.477,111.02454546]
[1693637179758,500.0,19.492,19.477,111.02454546]
[1693637179957,110.57,19.484,19.477,110.57]
[1693637191964,110.57,19.483,19.476,110.57]
[1693637202075,110.57,19.484,19.477,110.57]
[1693637205180,110.57,19.484,19.476,110.57]
[1693637211095,110.57,19.484,19.478,0.75765761]
[1693637213988,110.57,19.486,19.479,110.57]
[1693637214392,110.57,19.486,19.48,21.1315]
[1693637215696,110.57,19.486,19.481,0.69883104]
[1693637232013,110.57,19.485,19.481,0.69883104]
[1693637252328,15.05,19.484,19.481,0.69883104]
[1693637252626,110.57,19.483,19.481,0.69883104]
[1693637252832,15.05,19.482,19.48,21.06848762]
[1693637259125,125.62,19.481,19.48,21.06848762]
[1693637264037,110.57,19.481,19.48,21.06848762]
[1693637265538,125.62,19.481,19.48,21.06848762]
[1693637275047,110.57,19.481,19.48,21.06848762]
[1693637293559,110.57,19.481,19.472,0.45454546]
[1693637293763,0.27108692,19.471,19.457,21.7374]
[1693637293958,110.57,19.467,19.457,132.3074]
[1693637301459,110.57,19.467,19.458,9.43962233]
[1693637302063,110.57,19.467,19.459,110.57]
[1693637312177,110.57,19.465,19.459,110.57]
[1693637312578,110.57,19.465,19.459,151.33386036]
[1693637313377,110.57,19.465,19.459,110.57]
[1693637319981,110.57,19.468,19.461,110.57]
[1693637330885,110.57,19.468,19.462,15.41]
[1693637355000,110.57,19.468,19.463,20.0325]
[1693637362405,0.81117527,19.467,19.463,20.0325]
[1693637391624,0.81117527,19.467,19.464,15.41]
[1693637391825,0.81117527,19.467,19.464,53.72365809]
[1693637405638,0.81117527,19.467,19.464,15.41]
[1693637406137,0.81117527,19.467,19.464,55.98113507]
[1693637420846,110.57,19.471,19.464,166.55113507]
[1693637422049,110.57,19.473,19.466,110.57]
[1693637432955,0.45454546,19.477,19.467,15.41]
[1693637433154,110.57,19.478,19.472,15.41]
[1693637433354,110.57,19.481,19.474,110.57]
[1693637436960,28.99359083,19.484,19.472,20.3652]
[1693637436961,139.56359083,19.484,19.476,110.57]
[1693637437462,110.57,19.484,19.476,110.57]
[1693637439561,110.57,19.484,19.477,15.41]
[1693637440657,110.57,19.488,19.481,110.57]
[1693637441060,110.57,19.488,19.482,21.3822]
[1693637442065,110.57,19.489,19.482,131.9522]
[1693637449268,110.57,19.489,19.483,15.41]
[1693637450770,110.57,19.489,19.483,125.98]
[1693637450972,110.57,19.49,19.483,125.98]
[1693637452073,110.57,19.491,19.484,110.57]
[1693637458472,110.57,19.491,19.483,15.41]
[1693637458677,110.57,19.491,19.484,110.57]
[1693637460680,110.57,19.492,19.485,110.57]
[1693637483196,110.57,19.492,19.484,110.57]
[1693637491000,110.57,19.491,19.484,110.57]
[1693637495804,41.62522049,19.493,19.487,110.57]
[1693637496309,41.62522049,19.493,19.488,21.3372]
[1693637501911,41.62522049,19.493,19.488,131.9072]
[1693637504224,41.62522049,19.493,19.49,15.4]
[1693637504419,41.62522049,19.493,19.489,15.4]
[1693637506816,110.57,19.495,19.489,15.4]
[1693637512121,110.57,19.497,19.49,110.57]
[1693637520825,110.57,19.498,19.491,110.57]
[1693637522940,110.57,19.495,19.488,131.9072]
[1693637531936,110.57,19.494,19.488,21.3372]
[1693637542048,110.57,19.496,19.488,131.9072]
[1693637562975,110.57,19.495,19.488,131.9072]
[1693637572183,110.57,19.494,19.488,21.3372]
[1693637572382,149.28882804,19.494,19.488,21.3372]
[1693637581988,110.57,19.492,19.488,21.3372]
[1693637591994,110.57,19.493,19.488,21.3372]
[1693637602103,38.71882804,19.494,19.488,131.9072]
[1693637651248,110.57,19.498,19.493,15.39]
[1693637651451,110.57,19.502,19.494,110.57]
[1693637651657,154.17076749,19.502,19.494,110.57]
[1693637651952,154.17076749,19.502,19.495,21.3284]
[1693637652754,43.60076749,19.502,19.497,110.57]
[1693637656349,400.26530888,19.506,19.5,15.39]
[1693637658052,110.57,19.504,19.496,125.96]
[1693637662158,149.45327055,19.505,19.497,110.57]
[1693637665660,110.57,19.508,19.5,110.57]
[1693637671958,110.57,19.508,19.501,20.2205]
[1693637681972,43.99055833,19.509,19.501,20.2205]
[1693637681973,110.57,19.507,19.501,20.2205]
[1693637682575,110.57,19.503,19.501,20.2205]
[1693637684974,43.99055833,19.509,19.493,110.57]
[1693637684975,110.57,19.502,19.493,110.57]
[1693637685274,110.57,19.498,19.493,21.6719]
[1693637688180,110.57,19.495,19.493,21.6719]
[1693637688383,110.57,19.495,19.489,15.38]
[1693637688881,110.57,19.495,19.49,21.126]
[1693637691981,110.57,19.494,19.49,21.126]
[1693637702187,110.57,19.498,19.492,15.39]
[1693637712093,110.57,19.499,19.492,15.39]
[1693637714091,110.57,19.501,19.494,110.57]
[1693637722098,110.57,19.503,19.496,15.39]
[1693637722497,110.57,19.503,19.497,20.4094]
[1693637732014,110.57,19.505,19.497,20.4094]
[1693637733915,110.57,19.501,19.497,20.4094]
[1693637734111,110.57,19.498,19.49,110.57]
[1693637734517,110.57,19.498,19.491,21.6557]
[1693637751926,110.57,19.497,19.491,21.6557]
[1693637760239,110.57,19.497,19.492,15.39]
[1693637760634,110.57,19.499,19.492,125.96]
[1693637768035,110.57,19.494,19.491,21.6557]
[1693637768441,110.57,19.494,19.491,20.84452473]
[1693637775941,110.57,19.494,19.471,295.53066101]
[1693637775942,12.42336582,19.489,19.47,110.57]
[1693637776144,110.57,19.478,19.477,20.771]
[1693637777444,110.57,19.478,19.466,15.39]
[1693637777643,110.57,19.473,19.471,20.771]
[1693637780836,110.57,19.473,19.471,21.14218682]
[1693637782042,110.57,19.472,19.471,21.14218682]
[1693637792449,110.57,19.472,19.471,20.771]
[1693637792851,110.57,19.472,19.464,15.39]
[1693637793053,110.57,19.471,19.466,15.41]
[1693637795753,110.57,19.471,19.467,0.43313799]
[1693637810473,110.57,19.474,19.467,0.43313799]
[1693637820476,110.57,19.476,19.47,15.41]
[1693637825782,110.57,19.476,19.475,0.30926041]
[1693637852506,110.57,19.476,19.471,21.5113868]
[1693637852507,110.57,19.476,19.471,21.1402]
[1693637852706,110.57,19.472,19.471,21.1402]
[1693637855813,110.57,19.472,19.471,21.5113868]
[1693637857407,110.57,19.472,19.471,0.3711868]
[1693637875726,110.57,19.473,19.471,0.3711868]
[1693637879029,110.57,19.476,19.471,0.3711868]
[1693637879423,110.57,19.476,19.471,20.8360868]
[1693637881932,110.57,19.478,19.471,20.8360868]
[1693637883332,110.57,19.472,19.471,20.8360868]
[1693637897750,110.57,19.472,19.471,20.4649]
[1693637900856,110.57,19.472,19.471,20.8360868]
[1693637911958,110.57,19.473,19.471,20.8360868]
[1693637924161,110.57,19.477,19.471,20.8360868]
[1693637931968,24.08884233,19.48,19.471,131.4060868]
[1693637931969,110.57,19.478,19.471,131.4060868]
[1693637957986,110.57,19.478,19.471,131.0349]
[1693637961583,24.08884233,19.48,19.471,20.8360868]
[1693637961584,110.57,19.472,19.471,20.8360868]
[1693637970500,110.57,19.475,19.471,20.8360868]
[1693637971998,110.57,19.474,19.471,20.8360868]
[1693637974294,110.57,19.477,19.471,20.8360868]
[1693637982107,134.65884233,19.48,19.472,110.57]
[1693637984507,110.57,19.473,19.471,0.3711868]
[1693637984810,110.57,19.472,19.471,0.3711868]
[1693637996512,111.02454546,19.472,19.467,0.43313798]
[1693637996709,110.57,19.468,19.467,0.43313798]
[1693637996909,111.02454546,19.468,19.467,0.43313798]
[1693638002317,110.57,19.468,19.467,0.43313798]